bitfinex/quotes_BTCUSD_20251120
["timestamp","ask_amount","ask_price","bid_price","bid_amount"]
[1763680548568,0.37510249,87798.0,87780.0,0.0158]
[1763680548796,0.323,87796.0,87780.0,0.0158]
[1763680549081,0.37510249,87799.0,87780.0,0.0158]
[1763680549260,0.323,87797.0,87780.0,0.0158]
[1763680549482,0.05210249,87807.0,87781.0,0.03104]
[1763680549483,0.323,87793.0,87781.0,0.03104]
[1763680549694,0.323,87793.0,87780.0,0.0158]
[1763680551272,0.04377671,87793.0,87765.0,0.11476708]
[1763680551638,0.04377671,87793.0,87766.0,0.0158]
[1763680551639,0.37510249,87781.0,87766.0,0.0158]
[1763680551822,0.37510249,87781.0,87767.0,0.11476708]
[1763680551823,0.323,87781.0,87767.0,0.11476708]
[1763680551981,0.323,87781.0,87780.0,0.02127]
[1763680552374,0.01787777,87819.0,87780.0,0.05231]
[1763680552710,0.323,87812.0,87781.0,0.13056708]
[1763680552917,0.01787777,87819.0,87782.0,0.01367022]
[1763680552918,0.52098162,87811.0,87782.0,0.01367022]
[1763680553125,0.182615,87809.0,87782.0,0.03104]
[1763680553326,0.202396,87807.0,87782.0,0.03104]
[1763680553530,0.01787777,87819.0,87782.0,0.03104]
[1763680553531,0.00087013,87794.0,87782.0,0.03104]
[1763680553738,0.323,87812.0,87782.0,0.03104]
[1763680554083,0.05210249,87807.0,87783.0,0.11476708]
[1763680554289,0.323,87803.0,87783.0,0.11476708]
[1763680554508,0.323,87801.0,87784.0,0.03104]
[1763680555264,0.323,87801.0,87800.0,0.02127]
[1763680555468,0.37510249,87810.0,87784.0,0.03104]
[1763680555680,0.323,87806.0,87785.0,0.03104]
[1763680555906,0.112553,87803.0,87785.0,0.03104]
[1763680556116,0.323,87802.0,87785.0,0.03104]
[1763680556311,0.323,87802.0,87801.0,0.02127]
[1763680556518,0.323,87802.0,87801.0,0.05231]
[1763680557170,4.079783,87830.0,87801.0,0.05231]
[1763680557395,0.37510249,87817.0,87801.0,0.05231]
[1763680557599,0.37510249,87813.0,87801.0,0.05231]
[1763680557986,0.323,87808.0,87801.0,0.05231]
[1763680558199,0.02099704,87807.0,87801.0,0.05231]
[1763680558404,0.02099704,87806.0,87801.0,0.05231]
[1763680558616,0.02099704,87805.0,87801.0,0.05231]
[1763680558763,0.323,87819.0,87801.0,0.05231]
[1763680558764,0.05210249,87815.0,87801.0,0.05231]
[1763680558968,0.323,87819.0,87801.0,0.05231]
[1763680558969,0.323,87811.0,87801.0,0.05231]
[1763680559177,0.323,87809.0,87801.0,0.05231]
[1763680559371,0.00111864,87802.0,87801.0,0.05231]
[1763680559629,0.00111864,87802.0,87792.0,0.0158]
[1763680559789,0.52420671,87834.0,87801.0,0.13603708]
[1763680559993,3.092691,87832.0,87801.0,0.15183708]
[1763680560209,0.001,87811.0,87802.0,0.03104]
[1763680560424,0.001,87811.0,87803.0,0.11476708]
[1763680560591,0.323,87832.0,87810.0,0.02127]
[1763680560792,0.05210249,87829.0,87810.0,0.02127]
[1763680561014,0.00139816,87811.0,87810.0,0.02127]
[1763680561217,0.00139816,87811.0,87810.0,0.05231]
[1763680562762,0.001,87832.0,87810.0,0.05231]
[1763680562966,0.02105134,87831.0,87822.0,0.11476708]
[1763680563175,0.00041849,87832.0,87830.0,0.02113]
[1763680563381,0.00041849,87832.0,87831.0,0.05209]
[1763680563706,0.02146547,87832.0,87831.0,0.05209]
[1763680564348,0.02146547,87832.0,87820.0,0.03096]
[1763680564602,0.02104698,87831.0,87821.0,0.11476708]
[1763680564988,0.02104698,87831.0,87813.0,0.03096]
[1763680565735,0.323,87830.0,87811.0,0.01596]
[1763680565948,0.02104698,87829.0,87812.0,0.03096]
[1763680567103,0.02104698,87829.0,87817.0,0.11476708]
[1763680567319,0.02104698,87828.0,87811.0,0.01596]
[1763680567472,0.02104698,87827.0,87811.0,0.01596]
[1763680567672,0.02104698,87826.0,87811.0,0.01596]
[1763680567872,0.021069,87825.0,87811.0,0.01596]
[1763680568095,0.05210249,87830.0,87811.0,0.01596]
[1763680568298,0.323,87828.0,87811.0,0.01596]
[1763680568474,0.00037269,87823.0,87811.0,0.01596]
[1763680568679,0.323,87824.0,87811.0,0.01596]
[1763680568906,0.323,87825.0,87811.0,0.01596]
[1763680569064,1.22976,87824.0,87811.0,0.01596]
[1763680569277,1.197489,87824.0,87811.0,0.01596]
[1763680569918,0.01787671,87821.0,87811.0,0.01596]
[1763680570118,0.987467,87822.0,87811.0,0.01596]
[1763680570319,0.5,87821.0,87811.0,0.01596]
[1763680570530,1.022595,87823.0,87811.0,0.01596]
[1763680570723,0.917153,87821.0,87811.0,0.01596]
[1763680570897,0.03163416,87820.0,87811.0,0.01596]
[1763680571107,0.02108995,87819.0,87811.0,0.01596]
[1763680571300,0.001,87824.0,87811.0,0.01596]
[1763680571301,0.02108995,87818.0,87811.0,0.01596]
[1763680571533,0.02108995,87817.0,87811.0,0.01596]
[1763680571737,0.02108995,87816.0,87811.0,0.01596]
[1763680571940,0.02108995,87815.0,87811.0,0.01596]
[1763680572158,0.02108995,87814.0,87811.0,0.01596]
[1763680572314,0.02108995,87813.0,87811.0,0.01596]
[1763680572514,0.02108995,87812.0,87811.0,0.01596]
[1763680572698,0.02108995,87812.0,87811.0,0.06805]
[1763680572898,0.323,87829.0,87811.0,0.06805]
[1763680573152,0.01787696,87812.0,87811.0,0.06805]
[1763680573338,0.02108995,87812.0,87811.0,0.06805]
[1763680573547,0.01787688,87812.0,87811.0,0.06805]
[1763680573749,0.03896683,87812.0,87811.0,0.06805]
[1763680574162,0.05210249,87830.0,87811.0,0.06805]
[1763680574467,0.01787681,87812.0,87811.0,0.06805]
[1763680574645,1.169671,87831.0,87811.0,0.06805]
[1763680574850,0.05210249,87828.0,87811.0,0.03709]
[1763680575028,0.898571,87826.0,87811.0,0.03709]
[1763680575228,0.896561,87824.0,87811.0,0.03709]
[1763680575431,0.645226,87822.0,87811.0,0.03709]
[1763680575636,0.330824,87820.0,87811.0,0.03709]
[1763680575818,0.459339,87827.0,87811.0,0.03709]
[1763680576019,0.449796,87825.0,87811.0,0.03709]
[1763680576351,0.419375,87821.0,87811.0,0.03709]
[1763680576554,0.01055332,87820.0,87811.0,0.03709]
[1763680576751,0.37510249,87830.0,87811.0,0.03709]
[1763680576958,0.630986,87827.0,87811.0,0.03709]
[1763680577170,0.323,87824.0,87811.0,0.03709]
[1763680577355,0.323,87821.0,87811.0,0.03709]
[1763680577710,0.01055256,87820.0,87811.0,0.03709]
[1763680577887,0.01055256,87819.0,87811.0,0.03709]
[1763680578098,0.01055256,87818.0,87811.0,0.03709]
[1763680578412,0.00041849,87832.0,87827.0,0.02113]
[1763680578558,0.00041849,87832.0,87812.0,0.14572708]
[1763680578559,0.00041849,87832.0,87831.0,0.03709]
[1763680578896,0.00041849,87832.0,87814.0,0.26336708]
[1763680579072,0.01055297,87831.0,87827.0,0.01596]
[1763680579414,0.00041849,87832.0,87831.0,0.02113]
[1763680580004,0.00041849,87832.0,87827.0,0.01596]
[1763680580607,0.00203,87828.0,87815.0,0.11476708]
[1763680581064,0.00203,87828.0,87784.0,0.37510249]
[1763680581065,0.05210249,87827.0,87801.0,0.04676]
[1763680581360,0.323,87823.0,87801.0,0.04676]
[1763680581520,1.356541,87820.0,87801.0,0.04676]
[1763680581721,0.3335558,87819.0,87801.0,0.04676]
[1763680581923,0.0105558,87818.0,87801.0,0.04676]
[1763680582122,0.0105541,87817.0,87802.0,0.03096]
[1763680582320,0.0105541,87816.0,87802.0,0.03096]
[1763680582544,0.0105541,87815.0,87802.0,0.03096]
[1763680582765,0.05513249,87827.0,87802.0,0.03096]
[1763680582766,0.0105541,87814.0,87802.0,0.03096]
[1763680582911,0.0105541,87813.0,87802.0,0.03096]
[1763680583120,0.01055816,87812.0,87796.0,0.01596]
[1763680583324,0.323,87808.0,87784.0,0.01596]
[1763680583523,0.323,87801.0,87784.0,0.01596]
[1763680583728,0.146623,87799.0,87784.0,0.01596]
[1763680583969,0.01055607,87798.0,87785.0,0.14572708]
[1763680584140,0.37510249,87816.0,87800.0,0.01596]
[1763680584324,0.03488665,87815.0,87801.0,0.11476708]
[1763680584532,0.00024844,87827.0,87814.0,0.02113]
[1763680584735,0.00037391,87827.0,87826.0,0.15185708]
[1763680585183,0.00037391,87827.0,87826.0,0.18281708]
[1763680586102,0.01754346,87843.0,87826.0,0.06805]
[1763680586311,0.323,87841.0,87826.0,0.03709]
[1763680586447,0.323,87839.0,87826.0,0.03709]
[1763680586643,0.02112308,87838.0,87826.0,0.03709]
[1763680586887,0.01796161,87843.0,87826.0,0.01596]
[1763680586888,0.323,87834.0,87826.0,0.01596]
[1763680587133,0.02112308,87833.0,87826.0,0.01596]
[1763680587313,0.02112308,87832.0,87826.0,0.01596]
[1763680587527,0.02112308,87831.0,87826.0,0.01596]
[1763680587731,0.02112308,87830.0,87826.0,0.01596]
[1763680587907,0.5,87848.0,87826.0,0.01596]
[1763680587908,0.02112217,87829.0,87826.0,0.01596]
[1763680588102,0.00203,87849.0,87826.0,0.01637815]
[1763680588103,1.08044,87847.0,87826.0,0.01637815]
[1763680588430,1.059196,87845.0,87826.0,0.01637815]
[1763680588610,1.772532,87843.0,87826.0,0.01637815]
[1763680588938,0.987092,87841.0,87826.0,0.01637815]
[1763680589091,0.438375,87839.0,87826.0,0.01637815]
[1763680589290,0.189773,87837.0,87826.0,0.01637815]
[1763680589615,0.672016,87835.0,87826.0,0.01637815]
[1763680589980,0.37510249,87845.0,87826.0,0.01637815]
[1763680590331,1.359799,87843.0,87826.0,0.01637815]
[1763680590509,0.617403,87841.0,87826.0,0.01637815]
[1763680590716,0.323,87838.0,87826.0,0.00041815]
[1763680590935,0.72697,87836.0,87826.0,0.00041815]
[1763680591158,1.058017,87837.0,87826.0,0.00041815]
[1763680591316,0.323,87834.0,87826.0,0.00041815]
[1763680592471,0.01056365,87833.0,87826.0,0.00041815]
[1763680592601,0.323,87841.0,87826.0,0.00041815]
[1763680592800,0.00457,87848.0,87826.0,0.01668815]
[1763680592801,0.149613,87837.0,87826.0,0.01668815]
[1763680593030,0.323,87834.0,87826.0,0.01668815]
[1763680593233,0.323,87834.0,87826.0,0.00041815]
[1763680593429,0.01056377,87833.0,87826.0,0.00041815]
[1763680593644,0.00435,87837.0,87826.0,0.00041815]
[1763680593847,1.655623,87834.0,87826.0,0.00041815]
[1763680594046,0.323,87831.0,87826.0,0.00041815]
[1763680596055,0.323,87842.0,87826.0,0.00041815]
[1763680596272,0.323,87838.0,87826.0,0.00041815]
[1763680596572,0.323,87834.0,87826.0,0.00041815]
[1763680596796,0.323,87830.0,87826.0,0.00041815]
[1763680597975,0.323,87838.0,87826.0,0.00041815]
[1763680598175,0.323,87835.0,87826.0,0.00041815]
[1763680598378,0.323,87831.0,87826.0,0.00041815]
[1763680598579,0.323,87829.0,87826.0,0.00041815]
[1763680598795,0.323,87827.0,87826.0,0.00041815]
[1763680599989,0.323,87840.0,87826.0,0.00041815]
[1763680600305,0.323,87835.0,87826.0,0.00041815]
[1763680600507,0.00457,87848.0,87827.0,0.03521]
[1763680600705,0.129118,87846.0,87839.0,0.01627]
[1763680600880,0.0560353,87845.0,87839.0,0.01627]
[1763680601089,0.312976,87852.0,87840.0,0.03521]
[1763680601314,0.01787233,87844.0,87828.0,0.16487]
[1763680601524,0.00043469,87841.0,87828.0,0.16487]
[1763680601697,0.05754996,87852.0,87833.0,0.11476708]
[1763680601698,0.436878,87851.0,87833.0,0.11476708]
[1763680601903,0.310414,87849.0,87833.0,0.11476708]
[1763680602146,0.323,87843.0,87833.0,0.11476708]
[1763680603333,0.0324,87842.0,87829.0,0.03521]
[1763680603522,0.030432,87865.0,87828.0,0.16487]
[1763680603523,0.323,87847.0,87828.0,0.16487]
[1763680603726,0.00435,87852.0,87828.0,0.16487]
[1763680603727,1.690244,87844.0,87828.0,0.16487]
[1763680604037,1.594639,87843.0,87828.0,0.16487]
[1763680604461,1.449409,87843.0,87828.0,0.16487]
[1763680604677,0.01787286,87840.0,87828.0,0.16487]
[1763680604920,0.01787286,87840.0,87828.0,0.01627]
[1763680606016,0.860432,87842.0,87828.0,0.01627]
[1763680606206,0.447697,87841.0,87828.0,0.01627]
[1763680606409,0.798505,87843.0,87828.0,0.01627]
[1763680606587,0.466806,87842.0,87828.0,0.01627]
[1763680606797,0.323,87850.0,87843.0,0.03989]
[1763680607004,0.030432,87866.0,87859.0,0.03989]
[1763680607208,0.5001,87879.0,87859.0,0.0751]
[1763680607423,0.00142439,87860.0,87859.0,0.0751]
[1763680608178,0.00012537,87860.0,87859.0,0.0751]
[1763680608505,0.0001,87879.0,87859.0,0.0751]
[1763680608711,0.0001,87879.0,87869.0,0.02362]
[1763680608909,0.0001,87879.0,87878.0,0.03989]
[1763680609391,0.0001,87879.0,87878.0,0.0751]
[1763680613663,0.0001,87879.0,87878.0,0.01627]
[1763680614253,0.0001,87879.0,87873.0,0.01627]
[1763680614669,0.00043444,87874.0,87868.0,0.01627]
[1763680614892,0.0001,87879.0,87868.0,0.01627]
[1763680615508,0.0001,87879.0,87878.0,0.02362]
[1763680615710,0.0001,87879.0,87878.0,0.05883]
[1763680619302,0.0001,87879.0,87869.0,0.14997708]
[1763680619500,0.01796348,87879.0,87868.0,0.01627]
[1763680619717,0.0001,87879.0,87868.0,0.01627]
[1763680620092,0.0002793,87869.0,87868.0,0.01627]
[1763680620302,0.0065793,87869.0,87862.0,0.1486]
[1763680620509,0.0065793,87869.0,87850.0,0.01627]
[1763680620510,0.0063,87869.0,87850.0,0.01627]
[1763680620833,0.323,87867.0,87850.0,0.01639537]
[1763680620968,0.0126,87869.0,87850.0,0.01139537]
[1763680620969,0.323,87863.0,87850.0,0.01139537]
[1763680622392,0.388725,87862.0,87850.0,0.01139537]
[1763680622592,0.01786793,87860.0,87850.0,0.01139537]
[1763680623774,0.01786793,87860.0,87859.0,0.02282]
[1763680623952,0.01786793,87860.0,87850.0,0.04492537]
[1763680624239,0.01786793,87860.0,87859.0,0.02282]
[1763680624674,0.01786793,87860.0,87859.0,0.05635]
[1763680625652,0.01786793,87860.0,87859.0,0.20495]
[1763680626648,0.00024827,87868.0,87859.0,0.20495]
[1763680627031,0.00024827,87868.0,87860.0,0.14829708]
[1763680627145,0.00024827,87868.0,87867.0,0.02282]
[1763680627894,0.00024827,87868.0,87867.0,0.05635]
[1763680628865,0.00024827,87868.0,87867.0,0.02282]
[1763680629869,0.01811482,87868.0,87867.0,0.02282]
[1763680630097,0.01811482,87868.0,87867.0,0.05635]
[1763680632429,0.01811482,87868.0,87867.0,0.02282]
[1763680634670,0.01811482,87868.0,87860.0,0.1486]
[1763680634671,0.02634482,87868.0,87860.0,0.1486]
[1763680634830,0.510265,87867.0,87860.0,0.1486]
[1763680635015,0.52104334,87866.0,87860.0,0.1486]
[1763680635216,0.02105898,87865.0,87860.0,0.1486]
[1763680635435,2.368553,87867.0,87860.0,0.1486]
[1763680635639,0.52106116,87866.0,87860.0,0.1486]
[1763680635900,0.02106116,87865.0,87860.0,0.1486]
[1763680636342,0.02107675,87864.0,87860.0,0.1486]
[1763680636496,0.00823,87861.0,87860.0,0.1486]
[1763680636703,0.00823,87861.0,87850.0,0.00012537]
[1763680636704,0.323,87859.0,87850.0,0.00012537]
[1763680636881,0.265921,87851.0,87850.0,0.00012537]
[1763680637083,0.28699775,87851.0,87850.0,0.00012537]
[1763680637438,0.15791775,87851.0,87850.0,0.00012537]
[1763680638087,0.02107675,87851.0,87850.0,0.02294537]
[1763680638398,0.02107675,87851.0,87850.0,0.00012537]
[1763680639110,0.323,87856.0,87850.0,0.05647537]
[1763680639483,0.323,87856.0,87855.0,0.03901]
[1763680639683,0.34405334,87856.0,87855.0,0.01619]
[1763680640104,0.36192309,87856.0,87850.0,0.00012537]
[1763680640235,0.02105334,87855.0,87850.0,0.00012537]
[1763680640597,0.02105334,87854.0,87850.0,0.00012537]
[1763680640817,0.02105334,87853.0,87850.0,0.00012537]
[1763680641048,0.02105334,87852.0,87850.0,0.03365537]
[1763680641254,0.00024827,87868.0,87855.0,0.01619]
[1763680641470,0.02106356,87867.0,87855.0,0.01619]
[1763680641679,0.00024827,87868.0,87856.0,0.03353]
[1763680641903,0.00024827,87868.0,87856.0,0.03227856]
[1763680642810,0.02106851,87867.0,87855.0,0.01619]
[1763680642987,0.323,87864.0,87852.0,0.01619]
[1763680643406,0.01786694,87866.0,87863.0,0.02282]
[1763680643568,0.01786694,87866.0,87865.0,0.02282]
[1763680643982,0.0389405,87866.0,87865.0,0.02282]
[1763680644205,0.0389405,87866.0,87865.0,0.05635]
[1763680644405,0.01786694,87866.0,87865.0,0.05635]
[1763680644798,0.00024827,87868.0,87865.0,0.05635]
[1763680645001,0.00024827,87868.0,87867.0,0.13758708]
[1763680645401,0.00024827,87868.0,87867.0,0.17111708]
[1763680646403,0.00024827,87868.0,87855.0,0.03353]
[1763680646602,0.00024827,87868.0,87859.0,0.11476708]
[1763680647264,0.00024827,87868.0,87867.0,0.02282]
[1763680647391,0.00024827,87868.0,87867.0,0.05635]
[1763680654642,0.00024827,87868.0,87867.0,0.070007]
[1763680655595,0.00024827,87868.0,87867.0,0.05635]
[1763680656738,0.00024827,87868.0,87867.0,0.20495]
[1763680658275,0.05210249,87908.0,87868.0,0.04648]
[1763680658504,0.37510249,87906.0,87879.0,0.11476708]
[1763680658807,0.323,87900.0,87879.0,0.11476708]
[1763680659025,0.670296,87899.0,87880.0,0.03142]
[1763680659169,0.670296,87899.0,87881.0,0.01506]
[1763680659373,0.323,87900.0,87881.0,0.01506]
[1763680659570,0.323,87900.0,87882.0,0.03142]
[1763680659753,0.00012537,87900.0,87882.0,0.03142]
[1763680659957,0.00012537,87900.0,87899.0,0.03545]
[1763680660378,0.00012537,87900.0,87899.0,0.06687]
[1763680660692,0.00212537,87900.0,87899.0,0.06687]
[1763680661098,0.00012537,87900.0,87899.0,0.06687]
[1763680663718,0.00012537,87900.0,87899.0,0.03545]
[1763680664119,0.00012537,87900.0,87883.0,0.1486]
[1763680664124,0.00012537,87900.0,87887.0,0.01506]
[1763680664125,0.00111803,87900.0,87887.0,0.01506]
[1763680664322,0.05210249,87896.0,87882.0,0.01506]
[1763680664518,0.05210249,87892.0,87882.0,0.01506]
[1763680664738,0.214992,87891.0,87882.0,0.01506]
[1763680664948,0.194124,87891.0,87882.0,0.01506]
[1763680665151,0.634124,87891.0,87882.0,0.01506]
[1763680665351,0.634124,87891.0,87883.0,0.03142]
[1763680665970,0.634124,87891.0,87882.0,0.01506]
[1763680666880,0.634124,87891.0,87874.0,0.03142]
[1763680666881,0.38571906,87890.0,87875.0,0.01506]
[1763680667036,0.562208,87889.0,87875.0,0.01506]
[1763680667438,0.323,87890.0,87888.0,0.03545]
[1763680667661,0.323,87896.0,87889.0,0.02039]
[1763680667863,0.323,87894.0,87889.0,0.02039]
[1763680668778,0.00012537,87900.0,87889.0,0.01939]
[1763680669013,0.37510249,87898.0,87889.0,0.01939]
[1763680669513,0.323,87896.0,87889.0,0.01939]
[1763680669826,0.001,87894.0,87890.0,0.14618708]
[1763680669979,0.001,87894.0,87893.0,0.02039]
[1763680670208,0.00012537,87900.0,87893.0,0.05181]
[1763680670411,0.00012537,87900.0,87899.0,0.06587]
[1763680672803,0.00012537,87900.0,87899.0,0.06687]
[1763680673088,0.00111803,87900.0,87899.0,0.06687]
[1763680675969,0.00111803,87900.0,87899.0,0.03545]
[1763680676515,0.00111803,87900.0,87899.0,0.03445]
[1763680676714,0.00111803,87900.0,87899.0,0.06587]
[1763680680316,0.00111803,87900.0,87896.0,0.01506]
[1763680680518,0.00012537,87900.0,87899.0,0.02039]
[1763680681017,0.00012537,87900.0,87899.0,0.05181]
[1763680682133,0.00012537,87900.0,87899.0,0.20041]
[1763680683545,0.00012537,87900.0,87899.0,0.16899]
[1763680684020,0.00012537,87900.0,87899.0,0.20047]
[1763680685387,0.0179845,87900.0,87899.0,0.20047]
[1763680685587,0.00012537,87900.0,87899.0,0.20047]
[1763680686969,0.00012537,87900.0,87899.0,0.16899]
[1763680687366,0.00111803,87900.0,87899.0,0.1486]
[1763680687695,0.124805,87898.0,87894.0,0.01607]
[1763680687898,0.323,87899.0,87894.0,0.01607]
[1763680688120,0.00012537,87900.0,87898.0,0.02118]
[1763680688266,0.00012537,87900.0,87899.0,0.02118]
[1763680688469,0.01798571,87900.0,87899.0,0.02118]
[1763680688796,0.01798571,87900.0,87899.0,0.05266]
[1763680689306,0.01798571,87900.0,87899.0,0.02118]
[1763680689914,0.01798571,87900.0,87899.0,0.05266]
[1763680690423,0.01798571,87900.0,87899.0,0.02118]
[1763680690766,0.01798571,87900.0,87894.0,0.01607]
[1763680690965,0.384723,87899.0,87883.0,0.1486]
[1763680691409,0.323,87896.0,87848.0,0.11476708]
[1763680691612,0.37510249,87893.0,87869.0,0.03148]
[1763680691783,0.323,87889.0,87869.0,0.03148]
[1763680692085,0.5,87908.0,87888.0,0.02118]
[1763680692419,0.02109778,87899.0,87889.0,0.05266]
[1763680692724,0.323,87917.0,87898.0,0.03725]
[1763680692997,0.323,87915.0,87898.0,0.01607]
[1763680693174,0.323,87915.0,87876.0,0.11476708]
[1763680693175,0.323,87913.0,87892.0,0.01607]
[1763680693867,0.11476708,87919.0,87892.0,0.01607]
[1763680693868,0.001,87893.0,87892.0,0.01607]
[1763680694256,0.05210249,87913.0,87892.0,0.06873]
[1763680694453,0.05210249,87911.0,87892.0,0.06873]
[1763680694657,0.764655,87908.0,87892.0,0.06873]
[1763680694973,0.519908,87908.0,87893.0,0.03148]
[1763680695745,0.323,87905.0,87893.0,0.03148]
[1763680695947,0.164887,87905.0,87893.0,0.03148]
[1763680696146,0.468475,87908.0,87893.0,0.03148]
[1763680696393,0.458387,87908.0,87893.0,0.03148]
[1763680696939,0.323,87907.0,87893.0,0.03148]
[1763680697178,0.323,87907.0,87892.0,0.01607]
[1763680697179,0.323,87902.0,87892.0,0.01607]
[1763680697389,1.159695,87899.0,87887.0,0.01607]
[1763680697601,1.159695,87899.0,87887.0,0.01619537]
[1763680697812,0.37562978,87898.0,87887.0,0.00012537]
[1763680698000,0.323,87896.0,87887.0,0.00012537]
[1763680698192,0.281104,87896.0,87887.0,0.00012537]
[1763680699171,0.01786144,87897.0,87887.0,0.00012537]
[1763680699368,0.120142,87896.0,87887.0,0.00012537]
[1763680699568,0.323,87896.0,87887.0,0.00012537]
[1763680700737,0.323,87890.0,87887.0,0.00012537]
[1763680700947,4.09881149,87888.0,87887.0,0.00012537]
[1763680701122,3.74332583,87888.0,87887.0,0.00012537]
[1763680701324,3.19112949,87888.0,87887.0,0.00012537]
[1763680701709,3.32716737,87888.0,87887.0,0.00012537]
[1763680701908,3.37678631,87888.0,87887.0,0.00012537]
[1763680702321,3.35568237,87888.0,87887.0,0.00012537]
[1763680703040,3.41163073,87888.0,87887.0,0.00012537]
[1763680703235,3.36201179,87888.0,87887.0,0.00012537]
[1763680703416,3.41163073,87888.0,87887.0,0.00012537]
[1763680704034,3.41263073,87888.0,87887.0,0.00012537]
[1763680704668,3.41225123,87888.0,87887.0,0.00012537]
[1763680704965,3.41221813,87888.0,87887.0,0.00012537]
[1763680705755,3.4453397,87888.0,87887.0,0.00012537]
[1763680706130,3.4463397,87888.0,87887.0,0.00012537]
[1763680706515,3.4453397,87888.0,87887.0,0.00012537]
[1763680706970,3.4463397,87888.0,87887.0,0.00012537]
[1763680707266,3.48705734,87888.0,87887.0,0.00012537]
[1763680707418,3.4463397,87888.0,87887.0,0.00012537]
[1763680707619,3.48705734,87888.0,87887.0,0.00012537]
[1763680707858,3.48705734,87888.0,87833.0,0.11476708]
[1763680707859,0.05210249,87861.0,87822.0,0.01607]
[1763680708109,4.09881149,87847.0,87825.0,0.00041815]
[1763680708282,0.37510249,87843.0,87825.0,0.00041815]
[1763680708485,0.323,87839.0,87825.0,0.00041815]
[1763680708807,0.323,87835.0,87825.0,0.00041815]
[1763680708956,0.323,87831.0,87825.0,0.00041815]
[1763680709149,0.323,87829.0,87825.0,0.00041815]
[1763680709804,0.33511402,87829.0,87825.0,0.00041815]
[1763680710184,0.05210249,87841.0,87825.0,0.00041815]
[1763680710185,2.54202,87835.0,87825.0,0.00041815]
[1763680710391,0.323,87832.0,87825.0,0.00041815]
[1763680710587,0.664318,87828.0,87825.0,0.00041815]
[1763680710913,1.80162449,87826.0,87825.0,0.00041815]
[1763680711298,1.80162449,87826.0,87800.0,0.0002]
[1763680711299,0.05210249,87824.0,87800.0,0.0002]
[1763680711513,0.11476708,87828.0,87800.0,0.00032537]
[1763680711514,0.323,87811.0,87800.0,0.00032537]
[1763680711723,0.323,87806.0,87800.0,0.00032537]
[1763680711919,0.37510249,87803.0,87800.0,0.00032537]
[1763680712084,4.09881149,87801.0,87800.0,0.00032537]
[1763680712295,4.169347,87801.0,87800.0,0.00032537]
[1763680713225,4.20246857,87801.0,87800.0,0.00032537]
[1763680713524,4.20246857,87801.0,87790.0,0.0002]
[1763680713525,4.14843043,87791.0,87790.0,0.0002]
[1763680713729,4.169347,87791.0,87790.0,0.00032547]
[1763680714376,4.18723011,87791.0,87790.0,0.00032547]
[1763680714526,4.27908807,87791.0,87790.0,0.00032547]
[1763680714731,0.37510249,87788.0,87760.0,0.0002]
[1763680714936,1.793168,87764.0,87760.0,0.00032549]
[1763680715115,0.323,87765.0,87760.0,0.00032549]
[1763680715335,1.532784,87764.0,87760.0,0.00032549]
[1763680715538,1.447571,87764.0,87760.0,0.00032549]
[1763680715760,0.893438,87764.0,87760.0,0.00032549]
[1763680716154,0.637043,87764.0,87760.0,0.00032549]
[1763680716341,0.4534,87764.0,87761.0,0.01554]
[1763680716549,0.32252933,87764.0,87763.0,0.02108]
[1763680716973,0.10974107,87791.0,87763.0,0.06511318]
[1763680716974,0.5,87790.0,87763.0,0.06511318]
[1763680717180,0.01788311,87791.0,87779.0,0.03662]
[1763680717312,0.01788311,87791.0,87761.0,0.01554]
[1763680717313,0.248616,87790.0,87767.0,0.03036]
[1763680717515,0.812561,87789.0,87767.0,0.03036]
[1763680717717,0.880115,87790.0,87767.0,0.03036]
[1763680717962,0.11476708,87785.0,87761.0,0.01554]
[1763680718541,0.11476708,87785.0,87762.0,0.03036]
[1763680718542,3.569823,87784.0,87762.0,0.03036]
[1763680718687,0.323,87781.0,87761.0,0.01554]
[1763680719004,0.11476708,87785.0,87761.0,0.01554]
[1763680719005,0.323,87775.0,87761.0,0.01554]
[1763680719208,0.323,87773.0,87761.0,0.01554]
[1763680719424,0.323,87771.0,87761.0,0.01554]
[1763680719642,0.323,87769.0,87761.0,0.01554]
[1763680719917,0.323,87796.0,87770.0,0.02108]
[1763680720147,3.569823,87779.0,87760.0,0.00032549]
[1763680720298,0.11476708,87781.0,87760.0,0.00032549]
[1763680720299,3.202443,87761.0,87760.0,0.00032549]
[1763680720481,1.562606,87761.0,87760.0,0.00032549]
[1763680720753,0.323,87761.0,87760.0,0.00032549]
[1763680721036,0.435573,87761.0,87760.0,0.00032549]
[1763680721488,0.37510249,87777.0,87760.0,0.00032549]
[1763680721696,0.323,87764.0,87760.0,0.00032549]
[1763680721861,0.02080162,87776.0,87760.0,0.00032549]
[1763680721862,0.21999998,87800.0,87761.0,0.01554]
[1763680722064,0.20999999,87820.0,87764.0,0.02108]
[1763680722065,3.569823,87795.0,87764.0,0.02108]
[1763680722265,0.323,87790.0,87780.0,0.01554]
[1763680722487,0.05210249,87805.0,87761.0,0.01554]
[1763680722488,0.323,87782.0,87761.0,0.01554]
[1763680722656,1.730968,87784.0,87761.0,0.01554]
[1763680723037,3.569823,87782.0,87747.0,0.0459]
[1763680724322,3.569823,87782.0,87761.0,0.01554]
[1763680724530,1.629294,87784.0,87761.0,0.01554]
[1763680724727,3.569823,87780.0,87761.0,0.01554]
[1763680724954,0.323,87777.0,87761.0,0.01554]
[1763680725162,0.323,87773.0,87761.0,0.01554]
[1763680725413,0.784846,87770.0,87757.0,0.01554]
[1763680725617,0.323,87766.0,87747.0,0.01554]
[1763680725770,1.803531,87763.0,87747.0,0.01554]
[1763680726181,1.803531,87763.0,87755.0,0.01554]
[1763680726384,0.323,87762.0,87755.0,0.01554]
[1763680726579,0.470469,87761.0,87747.0,0.01554]
[1763680727023,0.470469,87761.0,87733.0,0.03036]
[1763680727189,0.470469,87761.0,87739.0,0.01554]
[1763680728170,0.52257149,87761.0,87739.0,0.01554]